{"text_format":"3","workbook":"xlsx","n_sheets":1,"sheets":["Plan budżetu świątecznego"],"not_rendered":{"defined_names":1},"read":"whole","date_system":"1900"}

{"sheet":"Plan budżetu świątecznego","index":0,"n_rows":37,"n_cols":12,"rows_kept":37,"merged":[[1,1,7,4],[9,1,9,4],[9,8,9,11],[19,1,19,4],[19,8,19,11],[30,1,30,4],[30,8,30,11]]}
[]
[null,"Plan budżetu świątecznego"]
[]
[{"$nulls":8},"BUDŻET ŚWIĄTECZNY",null,{"$f":"SUM(Prezenty[Budżet],Opakowania[Budżet],(Podróże[Budżet],(Posiłki[Budżet],(Rozrywka[Budżet],Inne[Budżet]))))","v":{"v":750,"d":"750.00 zł"}}]
[{"$nulls":8},"RZECZYWISTE WYDATKI",null,{"$f":"SUM((Prezenty[Rzeczywiste],(Opakowania[Rzeczywiste],(Podróże[Rzeczywiste],(Posiłki[Rzeczywiste],(Rozrywka[Rzeczywiste],(Inne[Rzeczywiste])))))))","v":{"v":820,"d":"820.00 zł"}}]
[]
[{"$nulls":8},"RÓŻNICA (przekroczenie budżetu/w ramach budżetu)",null,{"$f":"SUM(K4-K5)","v":{"v":-70,"d":"-70.00 zł"}}]
[]
[]
[null,"Prezenty",{"$nulls":6},"Posiłki świąteczne"]
[null,"Pozycja","Budżet","Rzeczywiste","Różnica",{"$nulls":3},"Pozycja","Budżet","Rzeczywiste","Różnica"]
[null,"Rodzina",{"v":500,"d":"500.00 zł"},{"v":495,"d":"495.00 zł"},{"$f":"Prezenty[[#This Row],[Budżet]]-Prezenty[[#This Row],[Rzeczywiste]]","v":{"v":5,"d":"5.00 zł"}},{"$nulls":3},"Artykuły spożywcze",null,null,{"$f":"Posiłki[[#This Row],[Budżet]]-Posiłki[[#This Row],[Rzeczywiste]]","v":{"v":0,"d":"0.00 zł"}}]
[null,"Znajomi",{"v":250,"d":"250.00 zł"},{"v":325,"d":"325.00 zł"},{"$f":"Prezenty[[#This Row],[Budżet]]-Prezenty[[#This Row],[Rzeczywiste]]","v":{"v":-75,"d":"-75.00 zł"}},{"$nulls":3},"Alkohole",null,null,{"$f":"Posiłki[[#This Row],[Budżet]]-Posiłki[[#This Row],[Rzeczywiste]]","v":{"v":0,"d":"0.00 zł"}}]
[null,"Współpracownicy",null,null,{"$f":"Prezenty[[#This Row],[Budżet]]-Prezenty[[#This Row],[Rzeczywiste]]","v":{"v":0,"d":"0.00 zł"}},{"$nulls":3},"Dekoracje",null,null,{"$f":"Posiłki[[#This Row],[Budżet]]-Posiłki[[#This Row],[Rzeczywiste]]","v":{"v":0,"d":"0.00 zł"}}]
[null,"Nauczyciele, nianie, opiekunki itd.",null,null,{"$f":"Prezenty[[#This Row],[Budżet]]-Prezenty[[#This Row],[Rzeczywiste]]","v":{"v":0,"d":"0.00 zł"}},{"$nulls":3},"Inne (naciśnij klawisz Tab w ostatniej kolumnie tego wiersza, aby dodać wiersz)",null,null,{"$f":"Posiłki[[#This Row],[Budżet]]-Posiłki[[#This Row],[Rzeczywiste]]","v":{"v":0,"d":"0.00 zł"}}]
[null,"Datki charytatywne",null,null,{"$f":"Prezenty[[#This Row],[Budżet]]-Prezenty[[#This Row],[Rzeczywiste]]","v":{"v":0,"d":"0.00 zł"}},{"$nulls":3},"Suma",{"$f":"SUBTOTAL(109,Posiłki[Budżet])","v":{"v":0,"d":"0.00 zł"}},{"$f":"SUBTOTAL(109,Posiłki[Rzeczywiste])","v":{"v":0,"d":"0.00 zł"}},{"$f":"SUBTOTAL(109,Posiłki[Różnica])","v":{"v":0,"d":"0.00 zł"}}]
[null,"Inne (naciśnij klawisz Tab w ostatniej kolumnie tego wiersza, aby dodać wiersz)",null,null,{"$f":"Prezenty[[#This Row],[Budżet]]-Prezenty[[#This Row],[Rzeczywiste]]","v":{"v":0,"d":"0.00 zł"}}]
[null,"Suma",{"$f":"SUBTOTAL(109,Prezenty[Budżet])","v":{"v":750,"d":"750.00 zł"}},{"$f":"SUBTOTAL(109,Prezenty[Rzeczywiste])","v":{"v":820,"d":"820.00 zł"}},{"$f":"SUBTOTAL(109,Prezenty[Różnica])","v":{"v":-70,"d":"-70.00 zł"}}]
[]
[null,"Opakowania",{"$nulls":6},"Rozrywka"]
[null,"Pozycja","Budżet","Rzeczywiste","Różnica",{"$nulls":3},"Pozycja","Budżet","Rzeczywiste","Różnica"]
[null,"Zawinięcia prezentów",null,null,{"$f":"Opakowania[[#This Row],[Budżet]]-Opakowania[[#This Row],[Rzeczywiste]]","v":{"v":0,"d":"0.00 zł"}},{"$nulls":3},"Pomoc na przyjęciu (barmani, kelnerzy, sprzątaczki itd.)",null,null,{"$f":"Rozrywka[[#This Row],[Budżet]]-Rozrywka[[#This Row],[Rzeczywiste]]","v":{"v":0,"d":"0.00 zł"}}]
[null,"Tagi",null,null,{"$f":"Opakowania[[#This Row],[Budżet]]-Opakowania[[#This Row],[Rzeczywiste]]","v":{"v":0,"d":"0.00 zł"}},{"$nulls":3},"Dekoracje",null,null,{"$f":"Rozrywka[[#This Row],[Budżet]]-Rozrywka[[#This Row],[Rzeczywiste]]","v":{"v":0,"d":"0.00 zł"}}]
[null,"Materiały (wstążki, taśmy itd.)",null,null,{"$f":"Opakowania[[#This Row],[Budżet]]-Opakowania[[#This Row],[Rzeczywiste]]","v":{"v":0,"d":"0.00 zł"}},{"$nulls":3},"Jedzenie i napoje",null,null,{"$f":"Rozrywka[[#This Row],[Budżet]]-Rozrywka[[#This Row],[Rzeczywiste]]","v":{"v":0,"d":"0.00 zł"}}]
[null,"Pudełka",null,null,{"$f":"Opakowania[[#This Row],[Budżet]]-Opakowania[[#This Row],[Rzeczywiste]]","v":{"v":0,"d":"0.00 zł"}},{"$nulls":3},"Ubrania",null,null,{"$f":"Rozrywka[[#This Row],[Budżet]]-Rozrywka[[#This Row],[Rzeczywiste]]","v":{"v":0,"d":"0.00 zł"}}]
[null,"Opłaty pocztowe",null,null,{"$f":"Opakowania[[#This Row],[Budżet]]-Opakowania[[#This Row],[Rzeczywiste]]","v":{"v":0,"d":"0.00 zł"}},{"$nulls":3},"Bilety",null,null,{"$f":"Rozrywka[[#This Row],[Budżet]]-Rozrywka[[#This Row],[Rzeczywiste]]","v":{"v":0,"d":"0.00 zł"}}]
[null,"Inne (naciśnij klawisz Tab w ostatniej kolumnie tego wiersza, aby dodać wiersz)",null,null,{"$f":"Opakowania[[#This Row],[Budżet]]-Opakowania[[#This Row],[Rzeczywiste]]","v":{"v":0,"d":"0.00 zł"}},{"$nulls":3},"Kolacje na mieście",null,null,{"$f":"Rozrywka[[#This Row],[Budżet]]-Rozrywka[[#This Row],[Rzeczywiste]]","v":{"v":0,"d":"0.00 zł"}}]
[null,"Suma",{"$f":"SUBTOTAL(109,Opakowania[Budżet])","v":{"v":0,"d":"0.00 zł"}},{"$f":"SUBTOTAL(109,Opakowania[Rzeczywiste])","v":{"v":0,"d":"0.00 zł"}},{"$f":"SUBTOTAL(109,Opakowania[Różnica])","v":{"v":0,"d":"0.00 zł"}},{"$nulls":3},"Inne (naciśnij klawisz Tab w ostatniej kolumnie tego wiersza, aby dodać wiersz)",null,null,{"$f":"Rozrywka[[#This Row],[Budżet]]-Rozrywka[[#This Row],[Rzeczywiste]]","v":{"v":0,"d":"0.00 zł"}}]
[{"$nulls":8},"Suma",{"$f":"SUBTOTAL(109,Rozrywka[Budżet])","v":{"v":0,"d":"0.00 zł"}},{"$f":"SUBTOTAL(109,Rozrywka[Rzeczywiste])","v":{"v":0,"d":"0.00 zł"}},{"$f":"SUBTOTAL(109,Rozrywka[Różnica])","v":{"v":0,"d":"0.00 zł"}}]
[]
[null,"Podróże",{"$nulls":6},"Różne"]
[null,"Pozycja","Budżet","Rzeczywiste","Różnica",{"$nulls":3},"Pozycja","Budżet","Rzeczywiste","Różnica"]
[null,"Koszt przelotu",null,null,{"$f":"Podróże[[#This Row],[Budżet]]-Podróże[[#This Row],[Rzeczywiste]]","v":{"v":0,"d":"0.00 zł"}},{"$nulls":3},"Zdjęcia świąteczne",null,null,{"$f":"Inne[[#This Row],[Budżet]]-Inne[[#This Row],[Rzeczywiste]]","v":{"v":0,"d":"0.00 zł"}}]
[null,"Zakwaterowanie",null,null,{"$f":"Podróże[[#This Row],[Budżet]]-Podróże[[#This Row],[Rzeczywiste]]","v":{"v":0,"d":"0.00 zł"}},{"$nulls":3},"Paliwo ",null,null,{"$f":"Inne[[#This Row],[Budżet]]-Inne[[#This Row],[Rzeczywiste]]","v":{"v":0,"d":"0.00 zł"}}]
[null,"Transport",null,null,{"$f":"Podróże[[#This Row],[Budżet]]-Podróże[[#This Row],[Rzeczywiste]]","v":{"v":0,"d":"0.00 zł"}},{"$nulls":3},"Inne (naciśnij klawisz Tab w ostatniej kolumnie tego wiersza, aby dodać wiersz)",null,null,{"$f":"Inne[[#This Row],[Budżet]]-Inne[[#This Row],[Rzeczywiste]]","v":{"v":0,"d":"0.00 zł"}}]
[null,"Inne (naciśnij klawisz Tab w ostatniej kolumnie tego wiersza, aby dodać wiersz)",null,null,{"$f":"Podróże[[#This Row],[Budżet]]-Podróże[[#This Row],[Rzeczywiste]]","v":{"v":0,"d":"0.00 zł"}},{"$nulls":3},"Suma",{"$f":"SUBTOTAL(109,Inne[Budżet])","v":{"v":0,"d":"0.00 zł"}},{"$f":"SUBTOTAL(109,Inne[Rzeczywiste])","v":{"v":0,"d":"0.00 zł"}},{"$f":"SUBTOTAL(109,Inne[Różnica])","v":{"v":0,"d":"0.00 zł"}}]
[null,"Suma",{"$f":"SUBTOTAL(109,Podróże[Budżet])","v":{"v":0,"d":"0.00 zł"}},{"$f":"SUBTOTAL(109,Podróże[Rzeczywiste])","v":{"v":0,"d":"0.00 zł"}},{"$f":"SUBTOTAL(109,Podróże[Różnica])","v":{"v":0,"d":"0.00 zł"}}]